[Event "44th Chess Olympiad Women 2022"]
[Site "Chennai"]
[Date "2022.07.29"]
[Round "1.36"]
[White "Meddeb, Chadha"]
[Black "Librelato, Kathie Goulart"]
[Result "0-1"]
[ECO "C45"]
[WhiteElo "1561"]
[BlackElo "2255"]
[Annotator "TA"]
[PlyCount "68"]
[EventDate "2022.07.29"]
[EventType "team-tourn"]
[EventCountry "IND"]
[SourceTitle "playchess.com"]
[Source "ChessBase"]
[SourceQuality "1"]
[WhiteTeam "Tunisia"]
[BlackTeam "Brazil"]
[WhiteTeamCountry "TUN"]
[BlackTeamCountry "BRA"]
[TimeControl "40/5400+30:1800+30"]

{[%evp 16,68,-35,-47,-49,-57,-63,-147,-136,-138,-130,-136,-87,-144,-160,-169,-154,-152,-81,-89,-87,-229,-226,-379,-376,-395,-378,-390,-391,-385,-348,-371,-352,-377,-372,-419,-415,-506,-512,-650,-650,-612,-596,-720,-715,-661,-624,-29976,-29977,-29977,-29978,-29995,-29996,-29996,-29997]} 1. e4 {[%emt 0:00:06]} e5 {[%emt 0:00:06]} 2. Nf3 {[%emt 0:00:51]} Nc6 {[%emt 0:00:07]} 3. d4 {[%emt 0:00:11]} exd4 {[%emt 0:00:07]} 4. Nxd4 {[%emt 0:00:30]} Nf6 {[%emt 0:00:07]} 5. Nxc6 {[%emt 0:04:56]} bxc6 {[%emt 0:00:10]} 6. Bd3 {[%emt 0:08:36]} d5 {[%emt 0:00:18]} 7. e5 {[%emt 0:02:46]} Ng4 {[%emt 0:00:23]} 8. Bf4 {[%emt 0:06:57]} Bc5 {[%emt 0:02:41]} 9. O-O {[%emt 0:03:57]} g5 {[%emt 0:01:56] C45: Scotch Game.} 10. Bg3 {[%emt 0:12:37]} h5 $1 {[%emt 0:01:21][%cal Bh7h5,Bh5h4][%mdl 32] [#] White must now prevent ...h4.} 11. h3 {[%emt 0:04:22]} ({Better is} 11. Be2 $1 $15) 11... h4 $17 {[%emt 0:01:29] Black is clearly better.} 12. Bh2 {[%emt 0:02:08]} Nxh2 {[%emt 0:11:09] Black is more active.} 13. Kxh2 {[%emt 0:00:03]} Bd4 {[%emt 0:01:20]} (13... Qe7 $142 14. Kh1 Rb8) 14. c3 {[%emt 0:06:34]} ({White should play} 14. f4) 14... Bxe5+ {[%emt 0:00:14]} 15. Kg1 {[%emt 0:02:27]} Qf6 $36 {[%emt 0:06:01][%mdl 2048] White is under strong pressure.} 16. Nd2 {[%emt 0:04:59]} g4 {[%emt 0:29:56] [#] Against Nf3} ({Stronger than} 16... Qf4 17. Nf3 Bd6 18. Re1+ Be6 19. Qc1 $17) (16... Rb8 $142 17. Re1 Kf8) 17. f4 $146 {[%emt 0:04:48]} ({Predecessor:} 17. hxg4 Qf4 18. Nf3 Bxg4 19. Qd2 Qxd2 20. Nxd2 Bf4 21. Rfe1+ Kd7 22. Be2 Bf5 23. Nb3 {1-0 (72) Szobi,T (2162)-Papp,Z (2133) Hungary 2002}) 17... Bxf4 {[%emt 0:05:23] ...Qg5 is the strong threat.} 18. Qe1+ {[%emt 0:00:16] This costs White the game.} (18. Qe2+ $17 Be6 19. Ne4 (19. Qf2 $2 Bh2+ 20. Kh1 Qxf2 $19)) 18... Be6 {[%emt 0:00:15]} 19. Qf2 $2 {[%emt 0:00:12] [#]} (19. hxg4 Qg5 20. Nf3 Qxg4 21. Ne5 Bxe5 22. Qxe5) 19... Bh2+ $1 $19 {[%emt 0:00:26][%mdl 512]} 20. Kh1 {[%emt 0:02:00]} Qxf2 {[%emt 0:00:17]} 21. Rxf2 {[%emt 0:00:02]} Bg3 {[%emt 0:00:21]} 22. Re2 {[%emt 0:00:30]} gxh3 {[%emt 0:07:35]} 23. gxh3 {[%emt 0:00:21]} O-O-O {[%emt 0:00:23]} 24. Rf1 {[%emt 0:08:58]} Rde8 {[%emt 0:03:02]} 25. Nb3 {[%emt 0:09:38]} Bxh3 {[%emt 0:05:41]} 26. Rxe8+ {[%emt 0:13:41]} Rxe8 {[%emt 0:00:07]} 27. Bf5+ {[%emt 0:00:08]} Bxf5 {[%emt 0:00:08]} 28. Rxf5 {[%emt 0:00:02][%mdl 4096] Endgame KRB-KRN} h3 {[%emt 0:07:41] ( -> ...Re1+)} 29. Rf1 {[%emt 0:01:14]} f5 {[%emt 0:02:31][%cal Bf7f5,Bf5f4,Bf4f3,Bf3f2][%mdl 32]} 30. Nd4 {[%emt 0:00:39]} f4 {[%emt 0:00:07]} 31. Nxc6 {[%emt 0:00:58]} f3 {[%emt 0:02:14] Black mates.} 32. Nd4 {[%emt 0:00:17]} f2 {[%emt 0:00:06]} 33. Nf5 {[%emt 0:00:33]} Bf4 {[%emt 0:01:16]} 34. a4 {[%emt 0:00:59]} Re1 {[%emt 0:00:18] Weighted Error Value: White=0.73/Black=0.06 (flawless)} 0-1

[Event "44th Chess Olympiad Women 2022"]
[Site "Chennai"]
[Date "2022.07.29"]
[Round "1.36"]
[White "Haouas, Zeineb"]
[Black "Gazola, Vanessa Ramos"]
[Result "0-1"]
[ECO "D94"]
[WhiteElo "1337"]
[BlackElo "2000"]
[Annotator "TA"]
[PlyCount "67"]
[EventDate "2022.07.29"]
[EventType "team-tourn"]
[EventCountry "IND"]
[SourceTitle "playchess.com"]
[Source "ChessBase"]
[SourceQuality "1"]
[WhiteTeam "Tunisia"]
[BlackTeam "Brazil"]
[WhiteTeamCountry "TUN"]
[BlackTeamCountry "BRA"]
[TimeControl "40/5400+30:1800+30"]

{[%evp 14,67,-11,-15,-12,-48,-41,-45,-58,-48,-55,-116,-115,-110,-42,-145,-24,-233,-228,-233,-230,-241,-233,-272,-270,-259,-236,-237,-231,-229,-229,-253,-238,-252,-235,-254,-250,-247,-241,-273,-285,-314,-313,-308,-303,-292,-272,-279,-269,-943,-282,-943,-926,-29997,-29998,-29998]} 1. d4 {[%emt 0:00:04]} Nf6 {[%emt 0:00:13]} 2. c4 {[%emt 0:00:08]} g6 {[%emt 0:00:16]} 3. Nc3 {[%emt 0:00:14]} d5 {[%emt 0:00:13]} 4. e3 {[%emt 0:00:24]} Bg7 {[%emt 0:00:28]} 5. Bd3 {[%emt 0:01:19]} O-O {[%emt 0:02:08]} 6. Nf3 {[%emt 0:01:13]} c5 {[%emt 0:00:16]} 7. O-O {[%emt 0:01:30]} cxd4 {[%emt 0:02:00]} 8. exd4 {[%emt 0:01:07]} Nc6 {[%emt 0:03:50] D94: Grünfeld: 4 Nf3 Bg7 5 e3.} 9. a3 {[%emt 0:14:03]} Bg4 {[%emt 0:08:29]} 10. Be3 {[%emt 0:11:49]} Rc8 {[%emt 0:19:11] Black is slightly better.} 11. cxd5 {[%emt 0:04:33]} Nxd5 {[%emt 0:00:13][%cal Oc6d4]} 12. Be4 {[%emt 0:01:07] [#]} (12. h3 $15 Bxf3 13. Qxf3) 12... Nxe3 $146 {[%emt 0:11:26]} ({Predecessor:} 12... Nxc3 13. bxc3 Na5 14. h3 Bxf3 15. Qxf3 b6 16. Bf4 Qd7 17. Ra2 Qa4 18. Rc1 Rfd8 {1-0 (30) Morgner,S (1728)-Beckel,F (2127) Dresden 2003}) 13. fxe3 {[%emt 0:00:08]} Na5 {[%emt 0:01:00]} (13... e5 $1 $17 {[%cal Re5d4]} 14. dxe5 Nxe5 15. Qxd8 Rfxd8 16. Nxe5 Bxe5) 14. Bd3 {[%emt 0:15:17] [#]} (14. Qe1 $15) 14... Be6 {[%emt 0:09:57]} (14... e5 $1 $17 {[%cal Re5d4]} 15. dxe5 Bxe5) 15. Nd2 $2 {[%emt 0:03:29] [#] This move loses the game for White.} (15. Rc1 $11) 15... Bxd4 $1 $19 {[%emt 0:02:16][%mdl 512]} 16. exd4 {[%emt 0:07:54]} Qxd4+ {[%emt 0:00:11]} 17. Kh1 {[%emt 0:00:12] aiming for Nf3.} Qxd3 {[%emt 0:00:09]} 18. Rf3 {[%emt 0:12:09]} Qd4 {[%emt 0:05:25] ...Bg4 is the strong threat.} 19. Qe1 {[%emt 0:04:00]} Nc4 {[%emt 0:02:58]} 20. Nxc4 {[%emt 0:03:19]} Qxc4 {[%emt 0:03:46]} 21. Qf2 {[%emt 0:03:38]} Qc5 {[%emt 0:06:18]} 22. Qf1 {[%emt 0:02:20]} Rcd8 {[%emt 0:06:56]} 23. Qe1 {[%emt 0:05:50]} h6 {[%emt 0:04:50]} 24. Rg3 {[%emt 0:02:00]} Kh7 {[%emt 0:01:06]} 25. Rc1 {[%emt 0:01:15]} Qd4 {[%emt 0:01:33]} 26. Rd1 {[%emt 0:00:45]} Qb6 {[%emt 0:00:47]} 27. b4 {[%emt 0:01:00]} Rxd1 {[%emt 0:00:16]} 28. Qxd1 {[%emt 0:00:13]} Rd8 {[%emt 0:00:56]} 29. Qe1 {[%emt 0:01:55]} Qd4 {[%emt 0:01:08]} 30. Rf3 {[%emt 0:01:02]} a6 {[%emt 0:02:11]} 31. Rf2 $2 {[%emt 0:00:36] [#]} (31. Re3) 31... Rc8 $2 {[%emt 0:01:16]} (31... Qxc3 $3 {[%mdl 512]} 32. Rf1 Qxa3) 32. Ne4 $2 {[%emt 0:00:50] [#]} (32. Rf3) 32... Qxe4 $3 {[%emt 0:01:00][%mdl 512]} 33. Qd2 {[%emt 0:01:00]} (33. Rf1 Qd3) 33... Qb1+ {[%emt 0:00:15]} 34. Qd1 {[%emt 0:00:29] Weighted Error Value: White=1.18/Black=0.37} 0-1

[Event "44th Chess Olympiad Women 2022"]
[Site "Chennai"]
[Date "2022.07.29"]
[Round "1.37"]
[White "Polterauer, Chiara"]
[Black "James, Shemilah"]
[Result "1/2-1/2"]
[ECO "C54"]
[WhiteElo "2183"]
[BlackElo "1590"]
[Annotator "TA"]
[PlyCount "131"]
[EventDate "2022.07.29"]
[EventType "team-tourn"]
[EventCountry "IND"]
[SourceTitle "playchess.com"]
[Source "ChessBase"]
[SourceQuality "1"]
[WhiteTeam "Austria"]
[BlackTeam "TTO"]
[WhiteTeamCountry "AUT"]
[TimeControl "40/5400+30:1800+30"]

{[%evp 16,131,16,0,4,0,0,0,15,26,60,6,113,105,93,103,82,101,92,87,601,585,636,484,507,478,596,469,596,213,199,215,206,176,177,173,161,188,166,132,124,138,220,114,118,0,209,124,179,139,176,159,177,180,177,164,199,194,321,193,222,229,253,136,188,136,150,67,51,45,52,26,28,14,72,22,21,20,20,8,25,16,12,0,21,12,66,20,19,0,129,75,90,77,51,0,29,0,15,14,0,0,7,0,8,0,0,0,0,0,0,0,0,0,0,0,0,-8]} 1. e4 {[%emt 0:00:03]} e5 {[%emt 0:00:11]} 2. Nf3 {[%emt 0:00:06]} Nc6 {[%emt 0:00:11]} 3. Bc4 {[%emt 0:00:12]} Bc5 {[%emt 0:00:10]} 4. c3 {[%emt 0:00:12]} Nf6 {[%emt 0:00:15]} 5. d3 {[%emt 0:00:09]} O-O {[%emt 0:00:43]} 6. Nbd2 {[%emt 0:00:17]} d6 {[%emt 0:00:26]} 7. h3 {[%emt 0:00:58]} a6 {[%emt 0:00:39]} 8. Bb3 {[%emt 0:00:15]} Ba7 {[%emt 0:00:40]} 9. Nf1 {[%emt 0:04:39]} h6 {[%emt 0:01:17] C54: Giuoco Piano: 4 c3 Nf6, main lines with 5 d4 and 5 d3.} 10. g4 {[%emt 0:02:37]} d5 {[%emt 0:10:40]} 11. Qe2 {[%emt 0:00:48]} dxe4 {[%emt 0:02:41]} 12. dxe4 {[%emt 0:00:17]} Re8 {[%emt 0:03:43]} 13. Ng3 {[%emt 0:01:34]} (13. g5 $14) 13... Be6 {[%emt 0:02:11]} (13... Na5 $11) 14. g5 $1 $16 {[%emt 0:01:52]} hxg5 {[%emt 0:03:26]} 15. Bxg5 {[%emt 0:00:24] And now Rd1 would win.} Bxb3 {[%emt 0:02:09]} 16. axb3 {[%emt 0:00:10]} Qd6 {[%emt 0:06:24]} 17. Rg1 {[%emt 0:09:18] [#]} Kf8 $146 {[%emt 0:24:46][%mdl 8192]} (17... g6 $16) ({Predecessor:} 17... g6 18. Nh4 Nh7 19. Be3 Qf6 20. Nhf5 Bxe3 21. Nxe3 Ne7 22. O-O-O Rad8 23. Ngf5 Ng5 {½-½ (42) Paehtz,E (2471)-Steil Antoni,F (2166) Kallithea 2008}) 18. Nf5 $18 {[%emt 0:14:39]} Qc5 {[%emt 0:07:07]} 19. Be3 {[%emt 0:20:49]} Qb5 {[%emt 0:04:04]} 20. Bxa7 {[%emt 0:01:59]} Qxe2+ {[%emt 0:02:38]} 21. Kxe2 {[%emt 0:00:04]} Rxa7 {[%emt 0:01:00]} 22. Nxg7 {[%emt 0:00:54]} (22. Rxg7 Rd8 23. Ng5) 22... Rd8 {[%emt 0:01:36]} 23. Ke3 {[%emt 0:00:34]} Raa8 {[%emt 0:01:34]} 24. Rg2 {[%emt 0:07:28] Active counter play!} Rd7 {[%emt 0:04:18]} 25. Rag1 {[%emt 0:02:06]} Rad8 {[%emt 0:04:17]} 26. Nf5 $1 {[%emt 0:07:36]} Rd1 {[%emt 0:03:26]} 27. Rxd1 {[%emt 0:03:50] Chess con chili.} Rxd1 {[%emt 0:00:03]} 28. Rg1 {[%emt 0:00:35]} Rd7 {[%emt 0:02:39]} (28... Rxg1 $16 29. Nxg1 Nd7) 29. Rg5 {[%emt 0:04:10]} (29. h4 $18) 29... Rd1 $16 {[%emt 0:01:18]} 30. Rg1 {[%emt 0:04:13]} (30. Ng3 $16) 30... Rd7 $1 $18 {[%emt 0:00:09]} 31. Ng3 {[%emt 0:00:17]} (31. h4 $18) 31... Rd6 {[%emt 0:02:33]} (31... Ne8 $16 32. h4 f6) 32. Nd2 {[%emt 0:03:00]} Nd7 {[%emt 0:01:53]} 33. h4 {[%emt 0:01:32]} Rg6 {[%emt 0:02:49]} 34. Rh1 {[%emt 0:01:56]} Nf6 {[%emt 0:00:50]} 35. Ke2 {[%emt 0:03:56]} Ne7 {[%emt 0:01:43]} 36. Nc4 {[%emt 0:00:28]} Nd7 {[%emt 0:00:37]} (36... Nc6 {is a better defense.} 37. Ne3 Ne7) 37. Ne3 {[%emt 0:01:04]} Nc5 {[%emt 0:01:25]} 38. h5 {[%emt 0:00:31]} Rh6 {[%emt 0:00:39]} 39. Nef5 {[%emt 0:01:36]} (39. b4 $18 Nd7 40. Rd1) 39... Rh7 {[%emt 0:00:59]} (39... Nxf5 $16 {was necessary.} 40. Nxf5 Rh7) 40. Nxe7 {[%emt 0:01:50]} ({White should play} 40. Rd1 $18 {[%cal Rd1d8]} Nxf5 41. exf5 (41. Nxf5 f6 $14)) 40... Kxe7 {[%emt 0:00:13][%mdl 4096] Endgame KRN-KRN} 41. h6 {[%emt 0:04:12]} ({White should try} 41. b4 $16 Ne6 42. h6) 41... Nxb3 $14 {[%emt 0:05:35]} 42. Nf5+ {[%emt 0:00:35]} Kf6 {[%emt 0:00:49]} 43. Ke3 {[%emt 0:05:50]} Nc5 {[%emt 0:01:37]} 44. Rd1 {[%emt 0:00:22]} a5 {[%emt 0:09:47]} (44... Rh8 $11) 45. f4 {[%emt 0:05:37]} (45. Rd8 $16) 45... exf4+ $11 {[%emt 0:03:02]} 46. Kxf4 {[%emt 0:00:04] aiming for e5+.} Ne6+ {[%emt 0:00:53]} 47. Ke3 {[%emt 0:00:05]} b6 {[%emt 0:01:12]} 48. Rg1 {[%emt 0:02:45]} Ng5 {[%emt 0:03:37]} 49. Rd1 {[%emt 0:04:28]} Ne6 {[%emt 0:01:29] Prevents Rd8.} 50. Rf1 {[%emt 0:03:11]} Ke5 {[%emt 0:02:03]} ({Better is} 50... Rh8 $11) 51. Rh1 {[%emt 0:00:28]} (51. Nd4 $14) 51... Kf6 {[%emt 0:01:59]} 52. Rh5 {[%emt 0:00:27]} Ng5 {[%emt 0:01:33] [#]} (52... Kg6 $11 {remains equal.} 53. Rh1 f6) 53. Kf4 {[%emt 0:02:08]} (53. Nh4 $142 $1) 53... Ne6+ $16 {[%emt 0:01:02] [#]} 54. Kg4 $1 {[%emt 0:00:59]} Nc5 {[%emt 0:00:54]} 55. Kf3 {[%emt 0:00:33]} (55. Ne3 $14) 55... Ne6 {[%emt 0:00:26]} 56. b4 {[%emt 0:02:34]} axb4 {[%emt 0:00:50] The position is equal.} 57. cxb4 {[%emt 0:00:04]} c5 {[%emt 0:00:53]} 58. bxc5 {[%emt 0:00:38]} bxc5 {[%emt 0:00:09]} 59. Kg4 {[%emt 0:00:19]} Nd4 {[%emt 0:01:14]} 60. Ne3 {[%emt 0:03:13]} Kg6 {[%emt 0:01:15]} 61. Rxc5 {[%emt 0:01:17]} Rxh6 {[%emt 0:00:12]} 62. Rd5 {[%emt 0:00:36]} Ne6 {[%emt 0:00:24]} 63. Rd6 {[%emt 0:00:12]} Rh1 {[%emt 0:00:44]} 64. Ra6 {[%emt 0:00:52]} Kf6 {[%emt 0:00:25]} 65. Kf3 {[%emt 0:00:10]} Rh3+ {[%emt 0:00:19]} 66. Kf2 {[%emt 0:00:54] Blacks defense is rewarded with a draw.  Weighted Error Value: White=0.32/Black=0.32} 1/2-1/2

[Event "44th Chess Olympiad Women 2022"]
[Site "Chennai"]
[Date "2022.07.29"]
[Round "1.37"]
[White "Hapala, Elisabeth"]
[Black "Mohammed, Celine Angelina"]
[Result "1-0"]
[ECO "C89"]
[WhiteElo "2113"]
[BlackElo "1100"]
[Annotator "TA"]
[PlyCount "89"]
[EventDate "2022.07.29"]
[EventType "team-tourn"]
[EventCountry "IND"]
[SourceTitle "playchess.com"]
[Source "ChessBase"]
[SourceQuality "1"]
[WhiteTeam "Austria"]
[BlackTeam "TTO"]
[WhiteTeamCountry "AUT"]
[TimeControl "40/5400+30:1800+30"]

{[%evp 22,89,27,37,113,107,96,108,160,166,169,136,139,141,146,133,153,147,163,147,163,160,150,153,171,175,173,145,156,133,174,141,154,148,147,136,151,144,149,138,185,168,190,190,233,241,234,234,233,236,257,252,303,304,422,421,415,413,557,542,1263,447,1293,775,6099,6052,5106,2766,29982,29983]} 1. e4 {[%emt 0:00:03]} e5 {[%emt 0:00:07]} 2. Nf3 {[%emt 0:00:03]} Nc6 {[%emt 0:00:09]} 3. Bb5 {[%emt 0:00:05][%cal Bf1b5,Bb5a4,Ba4b3][%mdl 32]} a6 {[%emt 0:00:53]} 4. Ba4 {[%emt 0:00:04]} Nf6 {[%emt 0:00:25]} 5. O-O {[%emt 0:00:09]} b5 {[%emt 0:00:22]} 6. Bb3 {[%emt 0:00:05]} Be7 {[%emt 0:00:28]} 7. Re1 {[%emt 0:04:46]} O-O {[%emt 0:02:08]} 8. c3 {[%emt 0:00:28]} d5 {[%emt 0:03:15]} 9. exd5 {[%emt 0:00:05]} Nxd5 {[%emt 0:00:08]} 10. Nxe5 {[%emt 0:01:17]} Nxe5 {[%emt 0:12:05]} 11. Rxe5 {[%emt 0:00:08]} Bb7 {[%emt 0:02:54]} 12. d4 {[%emt 0:06:38] [#]} f6 $146 {[%emt 0:05:36] C89: Closed Ruy Lopez: Marshall Attack.} (12... Bf6 $14) ({Predecessor:} 12... Bf6 13. Re1 Re8 14. Na3 Qd7 15. Nc2 Rxe1+ 16. Nxe1 Re8 17. Bd2 c5 18. dxc5 Qc6 19. Nf3 Qxc5 20. Qf1 {½-½ (76) Kamsky,G (2655)-Salem,A (2684) Chess.com INT 2022}) 13. Re1 {[%emt 0:08:57]} (13. Rh5 {feels hotter.} g6 14. Rh3 Re8 15. Bh6) 13... Kh8 {[%emt 0:12:07]} 14. Nd2 {[%emt 0:23:26][%cal Bb1d2,Bd2e4,Be4d6][%mdl 32]} Bd6 {[%emt 0:02:35]} (14... c5 $142) 15. Ne4 $16 {[%emt 0:04:46]} Re8 {[%emt 0:04:19][%cal Oe8e4]} 16. Nxd6 {[%emt 0:11:06]} Rxe1+ {[%emt 0:02:52]} 17. Qxe1 {[%emt 0:00:02] [#] Nf7+ is the strong threat.} Qxd6 {[%emt 0:02:00]} 18. Bd2 {[%emt 0:00:54]} Qc6 {[%emt 0:02:49][%cal Od5c3]} 19. f3 {[%emt 0:03:23]} Re8 {[%emt 0:05:17]} 20. Qf2 {[%emt 0:01:32]} Qd6 {[%emt 0:01:35]} 21. Re1 {[%emt 0:02:44]} Rxe1+ {[%emt 0:03:31]} 22. Qxe1 {[%emt 0:00:06] [#] White threatens Qe8+ and mate.} Qe7 {[%emt 0:01:39] Against Qe8+} 23. Qxe7 {[%emt 0:10:06]} Nxe7 $18 {[%emt 0:00:12][%mdl 4096] Endgame KBB-KBN} 24. Bf4 {[%emt 0:00:17]} c6 {[%emt 0:03:43]} 25. a4 {[%emt 0:04:47] White is more active.} g5 {[%emt 0:03:34]} 26. Bd2 {[%emt 0:04:32]} Kg7 {[%emt 0:01:20]} 27. Kf2 {[%emt 0:00:42]} Nf5 {[%emt 0:01:15]} 28. Bc2 {[%emt 0:04:50]} Nd6 {[%emt 0:00:34]} 29. axb5 {[%emt 0:00:27]} axb5 {[%emt 0:00:55]} 30. Ke2 {[%emt 0:05:56]} Nc4 {[%emt 0:00:36]} (30... Bc8 $16 31. g4 Be6) 31. Bc1 {[%emt 0:00:35]} h6 {[%emt 0:00:16]} 32. b3 {[%emt 0:00:22]} Nd6 {[%emt 0:00:10]} 33. Ba3 {[%emt 0:00:13]} Nc8 {[%emt 0:00:44]} 34. Bc5 {[%emt 0:00:17] Prevents Nb6.} Kf7 {[%emt 0:00:18]} 35. c4 {[%emt 0:01:02] And now cxb5 would win.} bxc4 {[%emt 0:00:21]} 36. bxc4 {[%emt 0:00:05]} Ne7 {[%emt 0:00:26]} 37. Kd2 {[%emt 0:00:41]} Ke6 {[%emt 0:01:02]} 38. g4 {[%emt 0:01:41] Against Nf5} Kf7 {[%emt 0:06:49]} 39. Kc3 {[%emt 0:00:30]} Ng8 {[%emt 0:01:25]} 40. Kb4 {[%emt 0:00:24]} Ne7 {[%emt 0:00:51]} 41. Ka5 {[%emt 0:30:54]} (41. Bxe7 $142 {[%cal Ob4c5] Black must now prevent Kc5!} Kxe7 42. Kc5) 41... Bc8 {[%emt 0:30:58]} (41... Nc8 $142 42. Be4 Ke8 43. Bg6+ Kd7) 42. Kb6 {[%emt 0:00:00] aiming for Bxe7.} Ke8 {[%emt 0:00:00]} 43. Bxe7 {[%emt 0:00:00]} Kxe7 {[%emt 0:00:00]} 44. Kxc6 {[%emt 0:00:00]} Bd7+ {[%emt 0:00:00]} 45. Kc7 {[%emt 0:00:00] White took control after the opening.  Weighted Error Value: White=0.27 (precise) /Black=0.46} 1-0